Department family,Entity,Date,Expense Type,Expense area,Supplier,Transation number,Amount,Narrative
Department for Culture Media and Sport,Department for Culture Media and Sport,01/04/2015,Grant-in-Aid (DCMS NDPBs),GIA Sports bodies,United Kingdom Anti Doping Ltd,0050001643,"736,000.00",UKAD GIA APRIL 15
Department for Culture Media and Sport,Department for Culture Media and Sport,01/04/2015,Grant-in-Aid (DCMS NDPBs),GIA British Film Institute,British Film Institute,0050001644,"1,297,545.00",BFI GIA APRIL 15
Department for Culture Media and Sport,Department for Culture Media and Sport,01/04/2015,Grant-in-Aid (DCMS NDPBs),GIA Sports bodies,Sport Ground Safety Authority,0050001645,"83,500.00",SGSA  GIA  APRIL 15
Department for Culture Media and Sport,Department for Culture Media and Sport,01/04/2015,Capital Grant Private Sector,GIA Architecture+Heritage,Greenwich Foundation for the RN College,0050001647,"101,833.00",ORNC_GIA_APR15
Department for Culture Media and Sport,Department for Culture Media and Sport,01/04/2015,Grant-in-Aid (DCMS NDPBs),GIA Arts bodies,Arts Council of England,0050001648,"64,417,582.00",ACE_GIA_APR15
Department for Culture Media and Sport,Department for Culture Media and Sport,01/04/2015,Grant-in-Aid (DCMS NDPBs),GIA Tourism bodies,VisitBritain,0050001649,"4,050,000.00",VB_GIA_APR15
Department for Culture Media and Sport,Department for Culture Media and Sport,01/04/2015,Grant-in-Aid (DCMS NDPBs),GIA Architecture+Heritage,Churches Conservation Trust,0050001650,"250,000.00",CCT_GIA_APR15
Department for Culture Media and Sport,Department for Culture Media and Sport,01/04/2015,Grant-in-Aid (DCMS NDPBs),GIA S4C Welsh Fourth Channel,S4C-Sianel Pedwar Cymru-all inv inc. GIA,0050001652,"1,500,000.00",S4C_GIA_APR15
Department for Culture Media and Sport,Department for Culture Media and Sport,01/04/2015,Grant-in-Aid (DCMS NDPBs),GIA Architecture+Heritage,National Heritage Memorial Fund,0050001653,"5,028,750.00",NHMF_GIA_APR15
Department for Culture Media and Sport,Department for Culture Media and Sport,01/04/2015,Grant to OGD (Resource),Architecture + heritage progs,The Treasurer to the Queen,0050001654,"73,434.00",MH_GIA_APR15
Department for Culture Media and Sport,Department for Culture Media and Sport,01/04/2015,Capital Grant Private Sector,GIA Architecture+Heritage,Chatham Historic Dockyard Trust,0050001655,"118,500.00",CHDT_GIA_APR15
Department for Culture Media and Sport,Department for Culture Media and Sport,01/04/2015,Grant-in-Aid (DCMS NDPBs),GIA Sports bodies,Sport England,0050001656,"21,000,000.00",SE_GIA_APR15
Department for Culture Media and Sport,Department for Culture Media and Sport,01/04/2015,Grant-in-Aid (DCMS NDPBs),GIA Museums & Galleries,Imperial War Museum,0050001657,"4,603,658.00",IWM_GIA_APR15
Department for Culture Media and Sport,Department for Culture Media and Sport,01/04/2015,Grant-in-Aid (DCMS NDPBs),GIA Museums & Galleries,Natural History Museum,0050001658,"3,497,000.00",NHM_GIA_APR15
Department for Culture Media and Sport,Department for Culture Media and Sport,01/04/2015,Grant-in-Aid (DCMS NDPBs),GIA Libraries bodies,British Library,0050001659,"6,638,225.00",BL_GIA_APR15
Department for Culture Media and Sport,Department for Culture Media and Sport,01/04/2015,Grant-in-Aid (DCMS NDPBs),GIA Museums & Galleries,The Royal Armouries,0050001660,"592,750.00",RA_GIA_APR15
Department for Culture Media and Sport,Department for Culture Media and Sport,01/04/2015,Grant-in-Aid (DCMS NDPBs),GIA Museums & Galleries,British Museum,0050001661,"1,705,000.00",BM_GIA_APR15
Department for Culture Media and Sport,Department for Culture Media and Sport,01/04/2015,Grant-in-Aid (DCMS NDPBs),GIA Museums & Galleries,National Museums & Galleries Merseyside,0050001662,"1,652,500.00",NML_GIA_APR15
Department for Culture Media and Sport,Department for Culture Media and Sport,01/04/2015,Grant-in-Aid (DCMS NDPBs),GIA Museums & Galleries,Wallace Collection,0050001664,"220,000.00",TWC_GIA_APR15
Department for Culture Media and Sport,Department for Culture Media and Sport,01/04/2015,Grant-in-Aid (DCMS NDPBs),GIA Museums & Galleries,Victoria & Albert Museum,0050001666,"4,109,084.00",V&AM_GIA_APR15
Department for Culture Media and Sport,Department for Culture Media and Sport,01/04/2015,Grant-in-Aid (DCMS NDPBs),GIA Museums & Galleries,Horniman Museum,0050001668,"173,701.00",HM_GIA_APR15
Department for Culture Media and Sport,Department for Culture Media and Sport,01/04/2015,Grant-in-Aid (DCMS NDPBs),GIA Museums & Galleries,National Portrait Gallery,0050001669,"554,833.00",NPG_GIA_APR15
Department for Culture Media and Sport,Department for Culture Media and Sport,01/04/2015,Grant-in-Aid (DCMS NDPBs),GIA Museums & Galleries,Geffrye Museum,0050001670,"125,084.00",GM_GIA_APR15
Department for Culture Media and Sport,Department for Culture Media and Sport,01/04/2015,Grant-in-Aid (DCMS NDPBs),GIA Museums & Galleries,Sir John Soane's Museum,0050001674,"91,000.00",SJSM_GIA_APR15
Department for Culture Media and Sport,Department for Culture Media and Sport,01/04/2015,Grant-in-Aid (DCMS NDPBs),GIA Museums & Galleries,Science Museum Group (ex-NMSI),0050001676,"3,659,917.00",SMG_GIA_APR15
Department for Culture Media and Sport,Department for Culture Media and Sport,01/04/2015,Grant-in-Aid (DCMS NDPBs),OFCOM,OFCOM,0050001678,"30,915.00",Small Scale DAB Costs GIA APR15
Department for Culture Media and Sport,Department for Culture Media and Sport,01/04/2015,Grant-in-Aid (DCMS NDPBs),OFCOM,OFCOM,0050001679,"4,175,533.00",SMC_GIA_APR15
Department for Culture Media and Sport,Department for Culture Media and Sport,01/04/2015,Grant-in-Aid (DCMS NDPBs),OFCOM,OFCOM,0050001680,"316,120.00",OC_GIA_APR15
Department for Culture Media and Sport,Department for Culture Media and Sport,01/04/2015,Grant-in-Aid (DCMS NDPBs),OFCOM,OFCOM,0050001681,"627,796.00",UHF_GIA_APR15
Department for Culture Media and Sport,Department for Culture Media and Sport,01/04/2015,Grant-in-Aid (DCMS NDPBs),OFCOM,OFCOM,0050001682,"189,582.00",PSSR_GIA_APR15
Department for Culture Media and Sport,Department for Culture Media and Sport,01/04/2015,Grant to BBC:Home Broadcasting,Home Broadcasting:Grant to BBC,British Broadcasting Corporation,0050001686,"35,370,000.00",BBC GIA APRIL 2015 PT1
Department for Culture Media and Sport,Department for Culture Media and Sport,02/04/2015,Grant to OGD (Resource),GEO Other Ongoing Programmes,Office for National Statistics,0030039741,"32,924.02",Changes to ONS marriage system ph2
Department for Culture Media and Sport,Department for Culture Media and Sport,02/04/2015,Capital Grant Private Sector,Broadband UK Capital+Programme,Call Flow Solutions Ltd,0030039744,"29,899.00",BDUK Market Test Pilots milestone payment
Department for Culture Media and Sport,Department for Culture Media and Sport,02/04/2015,Capital Grant Private Sector,Broadband UK Capital+Programme,Call Flow Solutions Ltd,0030039747,"30,033.00",BDUK Market Test Pilots milestone payment
Department for Culture Media and Sport,Department for Culture Media and Sport,02/04/2015,Publicity,BDUK Marketing in Admin Costs,Carat UK,0030039750,"60,399.50",Media buying for BDUK National Marketing Campaign
Department for Culture Media and Sport,Department for Culture Media and Sport,02/04/2015,VAT-Recoverable Contracted-Out,Misc Balance Sheet,Carat UK,0030039750,"12,079.90",Media buying for BDUK National Marketing Campaign
Department for Culture Media and Sport,Department for Culture Media and Sport,02/04/2015,Current Grants Private Sector,Listed Places of Worship Grants,Topmark Claims Management Ltd,0030039776,"683,000.00",Funding for LPW 260315_020415
Department for Culture Media and Sport,Department for Culture Media and Sport,07/04/2015,Grant-in-Aid (DCMS NDPBs),GIA Sports bodies,United Kingdom Sports Council,0050001642,"2,525,337.00",UK SPORT GIA APRIL 15
Department for Culture Media and Sport,Department for Culture Media and Sport,07/04/2015,Grant-in-Aid (DCMS NDPBs),GIA Architecture+Heritage,English Heritage,0050001651,"12,086,000.00",EH_GIA_APR15
Department for Culture Media and Sport,Department for Culture Media and Sport,07/04/2015,Grant-in-Aid (DCMS NDPBs),GIA Museums & Galleries,Tate Gallery,0050001663,"2,591,500.00",TATE_GIA_APR15
Department for Culture Media and Sport,Department for Culture Media and Sport,07/04/2015,Grant-in-Aid (DCMS NDPBs),GIA Museums & Galleries,National Gallery,0050001665,"3,476,458.00",NG_GIA_APR15
Department for Culture Media and Sport,Department for Culture Media and Sport,07/04/2015,Grant-in-Aid (DCMS NDPBs),GIA Museums & Galleries,National Maritime Museum,0050001667,"1,184,066.00",RMG(NMM)_GIA_APR15
Department for Culture Media and Sport,Department for Culture Media and Sport,07/04/2015,Grant-in-Aid (DCMS NDPBs),GIA Gambling + Lottery bodies,National Lottery Commission,0050001673,"208,507.00",NLC GIA APRIL 2015
Department for Culture Media and Sport,Department for Culture Media and Sport,07/04/2015,Grant-in-Aid (DCMS NDPBs),The Royal Parks - funding,The Royal Parks,0050001675,"4,000,000.00",TRP_GIA_APR15
Department for Culture Media and Sport,Department for Culture Media and Sport,07/04/2015,Grant-in-Aid (DCMS NDPBs),GIA to Equalities Bodies,GIA - EHRC,0050001684,"1,830,198.00",EHRC GIA APRIL 15  CORE
Department for Culture Media and Sport,Department for Culture Media and Sport,07/04/2015,Grant-in-Aid (DCMS NDPBs),GIA to Equalities Bodies,GIA - EHRC,0050001685,"533,180.00",EHRC GIA APR15 DISCRETIONARY PROG
Department for Culture Media and Sport,Department for Culture Media and Sport,08/04/2015,Public Appointments,Public Appointments,The Miles Partnership LLP,0030039538,"37,800.00",Fee Professional Services 
Department for Culture Media and Sport,Department for Culture Media and Sport,08/04/2015,Legal Advice,Broadband Delivery UK (Admin),Pinsent Masons,0030039772,"31,805.04",MOBILE INFASTRUCTURE PROJECT
Department for Culture Media and Sport,Department for Culture Media and Sport,08/04/2015,VAT-Recoverable Contracted-Out,Misc Balance Sheet,Pinsent Masons,0030039772,"6,361.01",MOBILE INFASTRUCTURE PROJECT
Department for Culture Media and Sport,Department for Culture Media and Sport,08/04/2015,Grant to BBC:Home Broadcasting,Home Broadcasting:Grant to BBC,British Broadcasting Corporation,0050001687,"35,370,000.00",BBC GIA APRIL 2015 PT2
Department for Culture Media and Sport,Department for Culture Media and Sport,10/04/2015,Capital Grant Private Sector,Broadband UK Capital+Programme,Call Flow Solutions Ltd,0030039809,"29,996.00",BDUK Market Test Pilots milestone payment
Department for Culture Media and Sport,Department for Culture Media and Sport,10/04/2015,Capital Grant Private Sector,Broadband UK Capital+Programme,Call Flow Solutions Ltd,0030039810,"30,073.00",BDUK Market Test Pilots milestone payment
Department for Culture Media and Sport,Department for Culture Media and Sport,10/04/2015,Current Grants Private Sector,Other Heritage Programme Costs,Topmark Claims Management Ltd,0030039826,"219,000.00",Memorial Grants Scheme grants January - March 2015
Department for Culture Media and Sport,Department for Culture Media and Sport,10/04/2015,Current Grants Private Sector,Listed Places of Worship Grants,Topmark Claims Management Ltd,0030039827,"194,000.00",Funding for LPW 020415_090415
Department for Culture Media and Sport,Department for Culture Media and Sport,10/04/2015,Grant-in-Aid (DCMS NDPBs),GIA Architecture+Heritage,English Heritage,0050001691,"4,000,000.00",Grant in Aid April 2015 second tranche
Department for Culture Media and Sport,Department for Culture Media and Sport,13/04/2015,Current Grants Private Sector,The First World War Centenary Cathedral Repairs Fund,The Archbishops Council,0030039825,"119,035.00",LINCOLN FIRST ROUND GRANT JAN - MAR 2015
Department for Culture Media and Sport,Department for Culture Media and Sport,13/04/2015,Current Grants Private Sector,The First World War Centenary Cathedral Repairs Fund,The Archbishops Council,0030039829,"59,503.99",CARLISLE 1ST ROUND GRANT JAN - MAR 2015
Department for Culture Media and Sport,Department for Culture Media and Sport,13/04/2015,Current Grants Private Sector,The First World War Centenary Cathedral Repairs Fund,The Archbishops Council,0030039831,"140,000.00",CHICHESTER 1ST ROUND GRANT JAN - MAR2015
Department for Culture Media and Sport,Department for Culture Media and Sport,13/04/2015,Current Grants Private Sector,The First World War Centenary Cathedral Repairs Fund,The Archbishops Council,0030039832,"25,000.00",MANCHESTER 2ND ROUND GRANT JAN-MAR 2015
Department for Culture Media and Sport,Department for Culture Media and Sport,13/04/2015,Current Grants Private Sector,The First World War Centenary Cathedral Repairs Fund,The Archbishops Council,0030039833,"97,000.00",ROCHESTER 1ST ROUND GRANT JAN - MAR 2015
Department for Culture Media and Sport,Department for Culture Media and Sport,13/04/2015,Current Grants Private Sector,The First World War Centenary Cathedral Repairs Fund,The Archbishops Council,0030039834,"52,283.37",SOUTHWARK 2ND ROUND GRANT JAN - MAR 2015
Department for Culture Media and Sport,Department for Culture Media and Sport,13/04/2015,Current Grants Private Sector,The First World War Centenary Cathedral Repairs Fund,The Archbishops Council,0030039850,"47,968.93",St ALBANS 1ST ROUND GRANT JAN - MAR 2015
Department for Culture Media and Sport,Department for Culture Media and Sport,13/04/2015,Current Grants Private Sector,The First World War Centenary Cathedral Repairs Fund,The Archbishops Council,0030039852,"232,977.00",SALISBURY 1ST ROUND GRANT JAN - MAR 2015
Department for Culture Media and Sport,Department for Culture Media and Sport,13/04/2015,Current Grants Private Sector,The First World War Centenary Cathedral Repairs Fund,The Archbishops Council,0030039853,"94,454.87",SOUTHWARK 1ST ROUND GRANT JAN - MAR 2015
Department for Culture Media and Sport,Department for Culture Media and Sport,13/04/2015,Current Grants Private Sector,The First World War Centenary Cathedral Repairs Fund,The Archbishops Council,0030039854,"71,501.36",SOUTHWARK R1 ENERGY INFRA JAN - MAR 2015
Department for Culture Media and Sport,Department for Culture Media and Sport,13/04/2015,Current Grants Private Sector,The First World War Centenary Cathedral Repairs Fund,The Archbishops Council,0030039855,"102,968.83",NORWICH 2ND ROUND GRANT JAN - MAR 2015
Department for Culture Media and Sport,Department for Culture Media and Sport,13/04/2015,Current Grants Private Sector,The First World War Centenary Cathedral Repairs Fund,The Archbishops Council,0030039857,"53,982.90",PORTSMOUTH 2ND ROUND GRANT JAN -MAR 2015
Department for Culture Media and Sport,Department for Culture Media and Sport,13/04/2015,Current Grants Private Sector,The First World War Centenary Cathedral Repairs Fund,The Archbishops Council,0030039859,"80,260.59",RIPON 2ND ROUND GRANT JAN - MAR 2015
Department for Culture Media and Sport,Department for Culture Media and Sport,13/04/2015,Current Grants Private Sector,The First World War Centenary Cathedral Repairs Fund,The Archbishops Council,0030039860,"41,611.11",COVENTRY 1ST ROUND GRANT RUINS JAN-MAR15
Department for Culture Media and Sport,Department for Culture Media and Sport,13/04/2015,Current Grants Private Sector,The First World War Centenary Cathedral Repairs Fund,The Archbishops Council,0030039861,"88,500.00",GLOUCESTER 1SR ROUND GRANT JAN - MAR2015
Department for Culture Media and Sport,Department for Culture Media and Sport,13/04/2015,Current Grants Private Sector,The First World War Centenary Cathedral Repairs Fund,The Archbishops Council,0030039865,"46,994.95",DERBY 1ST ROUND GRANT JAN - MAR 2015
Department for Culture Media and Sport,Department for Culture Media and Sport,13/04/2015,Grant to BBC:Home Broadcasting,Home Broadcasting:Grant to BBC,British Broadcasting Corporation,0050001688,"141,480,000.00",BBC GIA APRIL 2015 PT3
Department for Culture Media and Sport,Department for Culture Media and Sport,14/04/2015,Building Maintenance,Estates & Property Services,Carillion Services Ltd,0030039507,"21,490.33",Billing - JAN 2015
Department for Culture Media and Sport,Department for Culture Media and Sport,14/04/2015,VAT-Recoverable Contracted-Out,Misc Balance Sheet,Carillion Services Ltd,0030039507,"4,298.07",Billing - JAN 2015
Department for Culture Media and Sport,Department for Culture Media and Sport,14/04/2015,DCMS-Wolfson Museums & Gallery Improvement Fund,Misc Balance Sheet,London Transport Museum,0030039867,"31,110.00",WOLFSON GRANT ROUND 3 APRIL 2015
Department for Culture Media and Sport,Department for Culture Media and Sport,14/04/2015,Other Consultancy,Broadband Delivery UK (Admin),Oxera Consulting LLP,0030039916,"79,584.00",Oxera ex-post evaluation UK BB State Aid
Department for Culture Media and Sport,Department for Culture Media and Sport,14/04/2015,VAT-Recoverable Contracted-Out,Misc Balance Sheet,Oxera Consulting LLP,0030039916,"15,916.80",Oxera ex-post evaluation UK BB State Aid
Department for Culture Media and Sport,Department for Culture Media and Sport,15/04/2015,Research,EAU Taking Part Survey,TNS UK LTD,0030039721,"112,446.00",Fieldwork on track Feb & March 2015
Department for Culture Media and Sport,Department for Culture Media and Sport,15/04/2015,VAT-Recoverable Contracted-Out,Misc Balance Sheet,TNS UK LTD,0030039721,"22,489.20",Fieldwork on track Feb & March 2015
Department for Culture Media and Sport,Department for Culture Media and Sport,15/04/2015,Superannuation (payroll),Museums & Cultural Property,Tate (Modern),0030039812,"41,447.65",S WILLIAMS SECONDMENT REIMBURSEMENT
Department for Culture Media and Sport,Department for Culture Media and Sport,15/04/2015,Temp staff Interim managers,Broadband Delivery UK (Admin),Capita Bus Services (Interim Staff),0030039820,"25,734.79",Specialist advice N P/E 29/11/2014 - 14/02/2015
Department for Culture Media and Sport,Department for Culture Media and Sport,15/04/2015,Publicity,BDUK Marketing in Admin Costs,Carat UK,0030039922,"43,238.14",Media buying for BDUK National Marketing Campaign
Department for Culture Media and Sport,Department for Culture Media and Sport,15/04/2015,VAT-Recoverable Contracted-Out,Misc Balance Sheet,Carat UK,0030039922,"8,639.48",Media buying for BDUK National Marketing Campaign
Department for Culture Media and Sport,Department for Culture Media and Sport,15/04/2015,Publicity,BDUK Marketing in Admin Costs,Carat UK,0030039923,"22,036.91",Media buying for BDUK National Marketing Campaign
Department for Culture Media and Sport,Department for Culture Media and Sport,15/04/2015,VAT-Recoverable Contracted-Out,Misc Balance Sheet,Carat UK,0030039923,"4,403.23",Media buying for BDUK National Marketing Campaign
Department for Culture Media and Sport,Department for Culture Media and Sport,15/04/2015,Publicity,BDUK Marketing in Admin Costs,Carat UK,0030039924,"53,807.53",Media buying for BDUK National Marketing Campaign
Department for Culture Media and Sport,Department for Culture Media and Sport,15/04/2015,VAT-Recoverable Contracted-Out,Misc Balance Sheet,Carat UK,0030039924,"10,751.48",Media buying for BDUK National Marketing Campaign
Department for Culture Media and Sport,Department for Culture Media and Sport,15/04/2015,Publicity,BDUK Marketing in Admin Costs,Carat UK,0030039925,"107,374.74",Media buying for BDUK National Marketing Campaign
Department for Culture Media and Sport,Department for Culture Media and Sport,15/04/2015,VAT-Recoverable Contracted-Out,Misc Balance Sheet,Carat UK,0030039925,"21,454.83",Media buying for BDUK National Marketing Campaign
Department for Culture Media and Sport,Department for Culture Media and Sport,15/04/2015,NAO Audit Fees-actualNLDF/OLDF,Clear Line of Sight Alignment,National Audit Office,0030039934,"25,000.00",Audit of the 2013-14 NLDF
Department for Culture Media and Sport,Department for Culture Media and Sport,15/04/2015,Other Capital Grants,Other Sports Support(excl ISB),The Bumbles,0030039938,"54,486.92",Mixed Ability Rugby World Tournament
Department for Culture Media and Sport,Department for Culture Media and Sport,15/04/2015,Other Capital Grants,Other Sports Support(excl ISB),Street League,0030039939,"100,000.00",Contr toward costs to 31st March 2015
Department for Culture Media and Sport,Department for Culture Media and Sport,16/04/2015,T&S UK (Officials only),Procurement,Redfern Travel Limited,0030039771,"26,265.06",Redfern travel
Department for Culture Media and Sport,Department for Culture Media and Sport,16/04/2015,Other Capital Grants,Spectrum Clearance Programme,CFOA National Resilience Ltd,0030039808,"109,592.28",PHASE 2 BAT CAPITAL
Department for Culture Media and Sport,Department for Culture Media and Sport,16/04/2015,Current Grants Private Sector,GIA Architecture+Heritage,Chatham Historic Dockyard Trust,0030039945,"40,326.08",CHDT GRANT 01/03/2015 - 31/03/2015
Department for Culture Media and Sport,Department for Culture Media and Sport,16/04/2015,Current Grants Private Sector,Listed Places of Worship Grants,Topmark Claims Management Ltd,0030039957,"633,000.00",Funding for LPW 090415_160415
Department for Culture Media and Sport,Department for Culture Media and Sport,17/04/2015,Finance & Accounting Services,Finance,Liberata UK Ltd,0030039734,"47,923.34",ACCOUNTING SERVICES
Department for Culture Media and Sport,Department for Culture Media and Sport,17/04/2015,VAT-Recoverable Contracted-Out,Misc Balance Sheet,Liberata UK Ltd,0030039734,"9,584.66",ACCOUNTING SERVICES
Department for Culture Media and Sport,Department for Culture Media and Sport,17/04/2015,Office Accom Fuel & Utilities,Estates & Property Services,HM Revenue & Customs,0030039947,"98,474.57",DCMS 2014-15 Qtr 3 35 Workstations
Department for Culture Media and Sport,Department for Culture Media and Sport,17/04/2015,Equalities Helpline Service,GEO Equality Support Helpline,Sitel (UK) Ltd,0030039949,"151,511.99",Billing Period: MARCH 2015
Department for Culture Media and Sport,Department for Culture Media and Sport,17/04/2015,VAT-Recoverable Contracted-Out,Misc Balance Sheet,Sitel (UK) Ltd,0030039949,"30,302.39",Billing Period: MARCH 2015
Department for Culture Media and Sport,Department for Culture Media and Sport,17/04/2015,Current Grants Private Sector,The First World War Centenary Cathedral Repairs Fund,The Archbishops Council,0030039960,"46,505.49",SOUTHWARK GRANT SEP-DEC 14
Department for Culture Media and Sport,Department for Culture Media and Sport,17/04/2015,Current Grants Private Sector,The First World War Centenary Cathedral Repairs Fund,The Archbishops Council,0030039961,"30,982.05",COVENTRY GRANT SEP-DEC 2014
Department for Culture Media and Sport,Department for Culture Media and Sport,20/04/2015,VAT-Recoverable Contracted-Out,Misc Balance Sheet,The British Museum Great Court Limited,0030039931,"9,883.00",Treasure running costs 1/10/14-31/03/15
Department for Culture Media and Sport,Department for Culture Media and Sport,20/04/2015,Management of Grant Programmes,Museums+Cultural PropertyProgs,The British Museum Great Court Limited,0030039931,"49,415.00",Treasure running costs 1/10/14-31/03/15
Department for Culture Media and Sport,Department for Culture Media and Sport,20/04/2015,IT Support,ISSC1 Shared Services Project,CGI IT UK Limited,0030039971,"33,998.58",CONSULTANCY FOR: CR3889
Department for Culture Media and Sport,Department for Culture Media and Sport,20/04/2015,VAT-Recoverable Contracted-Out,Misc Balance Sheet,CGI IT UK Limited,0030039971,"6,799.72",CONSULTANCY FOR: CR3889
Department for Culture Media and Sport,Department for Culture Media and Sport,20/04/2015,Capital Grant Private Sector,Broadband UK Capital+Programme,Arqiva Ltd,0030039974,"306,653.00",Mobile Infrastructure Project Grant Claim: March 2015
Department for Culture Media and Sport,Department for Culture Media and Sport,20/04/2015,Grant to BBC:Home Broadcasting,Home Broadcasting:Grant to BBC,British Broadcasting Corporation,0050001689,"35,370,000.00",BBC GIA APRIL 2015 PT4
Department for Culture Media and Sport,Department for Culture Media and Sport,21/04/2015,National Non-Domestic Rates,Estates & Property Services,London Borough of Camden,0030039680,"247,522.50",BUS RATES 2015-16-TCR 2NF FLR E 3RD 4TH
Department for Culture Media and Sport,Department for Culture Media and Sport,21/04/2015,Security,Estates & Property Services,HM Revenue & Customs,0030039946,"602,291.71",DCMS 2014-15 Qtr 3 270 Workstations
Department for Culture Media and Sport,Department for Culture Media and Sport,21/04/2015,Current Grants Private Sector,GEO Other Ongoing Programmes,The Albert Kennedy Trust,0030039973,"32,315.00",ALBERT KENNEDY TRUST GRANT PAYMENT
Department for Culture Media and Sport,Department for Culture Media and Sport,21/04/2015,Grant to OGD (Resource),GEO Other Ongoing Programmes,HM Revenue & Customs,0030040006,"171,909.00",APRIL-NOV 2014
Department for Culture Media and Sport,Department for Culture Media and Sport,22/04/2015,Grant-in-Aid (DCMS NDPBs),GIA Gambling + Lottery bodies,National Lottery Commission,0050001702,"214,427.00",Grant-in-Aid May 2015
Department for Culture Media and Sport,Department for Culture Media and Sport,23/04/2015,Other Consultancy,Broadband Delivery UK (Admin),Oxera Consulting LLP,0030039968,"37,080.00",OXERA CONSULTANCY SERVICES EX POST EVALU
Department for Culture Media and Sport,Department for Culture Media and Sport,23/04/2015,VAT-Recoverable Contracted-Out,Misc Balance Sheet,Oxera Consulting LLP,0030039968,"7,416.00",OXERA CONSULTANCY SERVICES EX POST EVALU
Department for Culture Media and Sport,Department for Culture Media and Sport,23/04/2015,Current Grants Private Sector,Other Sports Support(excl ISB),Sussex Cricket Board Limited,0030040032,"50,000.00",Promotion of Community Cohesion- cricket
Department for Culture Media and Sport,Department for Culture Media and Sport,23/04/2015,Current Grants Private Sector,Listed Places of Worship Grants,Topmark Claims Management Ltd,0030040072,"615,000.00",Funding for LPW 160415_240415
Department for Culture Media and Sport,Department for Culture Media and Sport,24/04/2015,Current Grants Private Sector,Other Sports Support(excl ISB),Level Playing Field,0030040033,"30,000.00",Level Playing field Project
Department for Culture Media and Sport,Department for Culture Media and Sport,24/04/2015,Research,EAU Taking Part Survey,TNS UK LTD,0030040045,"112,447.00",March & April 2015 Fieldwork Y10 inv 12
Department for Culture Media and Sport,Department for Culture Media and Sport,24/04/2015,VAT-Recoverable Contracted-Out,Misc Balance Sheet,TNS UK LTD,0030040045,"22,489.40",March & April 2015 Fieldwork Y10 inv 12
Department for Culture Media and Sport,Department for Culture Media and Sport,24/04/2015,Research,EAU Taking Part Survey,TNS UK LTD,0030040047,"32,056.00",new interviewer briefings 5.  2014/2015
Department for Culture Media and Sport,Department for Culture Media and Sport,24/04/2015,VAT-Recoverable Contracted-Out,Misc Balance Sheet,TNS UK LTD,0030040047,"6,411.20",new interviewer briefings 5.  2014/2015
Department for Culture Media and Sport,Department for Culture Media and Sport,24/04/2015,Grant to BBC:Home Broadcasting,Home Broadcasting:Grant to BBC,British Broadcasting Corporation,0050001690,"35,370,000.00",BBC GIA APRIL 2015 PT5
Department for Culture Media and Sport,Department for Culture Media and Sport,24/04/2015,Capital Grant Private Sector,Grant support to NFTS,National Film & Television School,0050001701,"215,583.00",Grant Claim April 2015
Department for Culture Media and Sport,Department for Culture Media and Sport,27/04/2015,Capital Grant Private Sector,Broadband UK Capital+Programme,Cybermoor Services Ltd,0030040039,"54,545.00",BDUK Market Test Pilots milestone payment
Department for Culture Media and Sport,Department for Culture Media and Sport,27/04/2015,IT Capital Additions,Information Technology Services,Telefonica O2 UK Ltd,0030040051,"53,471.89",Mobile Charges 100 PS - March 2015
Department for Culture Media and Sport,Department for Culture Media and Sport,27/04/2015,VAT-Recoverable Contracted-Out,Misc Balance Sheet,Telefonica O2 UK Ltd,0030040051,"10,694.38",Mobile Charges 100 PS - March 2015
Department for Culture Media and Sport,Department for Culture Media and Sport,27/04/2015,Management of Grant Programmes,Listed Places of Worship Grants,Topmark Claims Mgt (Fees A/C),0030040122,"121,949.50",LPW & MGS Scheme fees
Department for Culture Media and Sport,Department for Culture Media and Sport,27/04/2015,VAT-Recoverable Contracted-Out,Misc Balance Sheet,Topmark Claims Mgt (Fees A/C),0030040122,"25,019.90",LPW & MGS Scheme fees
Department for Culture Media and Sport,Department for Culture Media and Sport,27/04/2015,Current Grants Private Sector,Other Heritage Programme Costs,Topmark Claims Mgt (Fees A/C),0030040122,"4,269.10",LPW & MGS Scheme fees
Department for Culture Media and Sport,Department for Culture Media and Sport,28/04/2015,IT Support,Information Technology Services,Atos IT Services UK Limited,0030039677,"128,045.06",DCMS NEW SERVICE
Department for Culture Media and Sport,Department for Culture Media and Sport,28/04/2015,VAT-Recoverable Contracted-Out,Misc Balance Sheet,Atos IT Services UK Limited,0030039677,"25,609.01",DCMS NEW SERVICE
Department for Culture Media and Sport,Department for Culture Media and Sport,28/04/2015,Publications & Website,Govt Art Collection programme,System Simulation Ltd,0030040133,"39,540.00",Collections Index Milestone 1
Department for Culture Media and Sport,Department for Culture Media and Sport,28/04/2015,Current Grants Private Sector,Other Sports Support(excl ISB),Cheshire Academy,0030040136,"35,467.00",Minibus costs
Department for Culture Media and Sport,Department for Culture Media and Sport,28/04/2015,Capital Grants to LAs,Broadband UK Capital+Programme,Isle of Wight Council,0030040143,"959,947.00",BDUK Superfast Britain milestone grant claim payment
Department for Culture Media and Sport,Department for Culture Media and Sport,29/04/2015,Temp staff Interim managers,ODA Residuary Functions,Belgrave Eccleston Ltd,0030040157,"38,415.00",Consultancy 1.3.15 & 31.3.15
